fUSD/lending_fUSD_20240826
["ID","MTS","AMOUNT","RATE_DAILY","PERIOD"]
[335945804,1724635837870,-1369.04804033,0.00010975,2]
[335945805,1724635837879,-550.4428823,0.00010982,2]
[335945806,1724635837891,-965.47893929,0.00010982,2]
[335945807,1724635837902,-232.32817841,0.00010982,2]
[335945808,1724635837911,-500.0,0.00010982,2]
[335945809,1724635837921,-374.91266579,0.00010982,2]
[335945810,1724635837932,-125.08733421,0.00010982,2]
[335945811,1724635837941,-500.0,0.00010982,2]
[335945812,1724635837950,-485.68219696,0.00010982,2]
[335945813,1724635837960,-500.0,0.00010982,2]
[335945814,1724635837969,-500.0,0.00010982,2]
[335945815,1724635837978,-500.0,0.00010982,2]
[335945816,1724635837988,-500.0,0.00010982,2]
[335945817,1724635837998,-5800.0,0.00010983,2]
[335945818,1724635838008,-500.0,0.00010986,2]
[335945819,1724635838019,-981.78,0.00010986,2]
[335945820,1724635838028,-2458.06,0.00010986,2]
[335945821,1724635838037,-946.06,0.00010986,2]
[335945822,1724635838047,-500.0,0.00010986,2]
[335945823,1724635838055,-4335.97,0.00010986,2]
[335945824,1724635838064,-544.63244394,0.00010986,2]
[335945825,1724635838075,-2388.94041669,0.00010986,2]
[335945826,1724635838086,-5928.80713937,0.00010986,2]
[335945827,1724635838095,-3318.59413129,0.00010986,2]
[335945828,1724635838111,-539.71586871,0.00010986,2]
[335945829,1724635838121,-1158.32384051,0.00010986,2]
[335945832,1724635838564,-1769.15615949,0.00010986,2]
[335945833,1724635838574,-3079.39,0.00010986,2]
[335945834,1724635838583,-2832.55,0.00010986,2]
[335945835,1724635838592,-6889.02,0.00010986,2]
[335945836,1724635838601,-508.83,0.00010986,2]
[335945837,1724635838610,-5655.15,0.00010986,2]
[335945838,1724635838619,-564.87,0.00010986,2]
[335945839,1724635838628,-1603.88,0.00010986,2]
[335945840,1724635838637,-6366.45,0.00010986,2]
[335945841,1724635838646,-500.0,0.00010986,2]
[335945842,1724635838655,-500.0,0.00010986,2]
[335945843,1724635838664,-8645.6,0.00010986,2]
[335945844,1724635838674,-500.0,0.00010986,2]
[335945845,1724635838683,-874.91,0.00010986,2]
[335945846,1724635838693,-500.0,0.00010986,2]
[335945847,1724635838702,-500.0,0.00010986,2]
[335945848,1724635838711,-37297.14536624,0.00010986,2]
[335945849,1724635838722,-1079.19611686,0.00010986,2]
[335945850,1724635838734,-14005.94135658,0.00010986,2]
[335945885,1724635839193,485.865148,0.00010009,2]
[335945890,1724635839834,-482.31682277,0.00010898,2]
[335945891,1724635839845,-155.0,0.00010949,2]
[335945892,1724635839855,-122.79909448,0.00010986,2]
[335945893,1724635839867,-401.71205352,0.00010986,2]
[335945894,1724635839878,-3333.99104239,0.00010986,2]
[335945895,1724635839890,-2462.91243068,0.00010986,2]
[335945896,1724635839902,-414.10351164,0.00010986,2]
[335945897,1724635839992,-50047.19902761,0.00010986,2]
[335945898,1724635840002,-580.0,0.00010986,2]
[335945899,1724635840011,-783.0,0.00010986,2]
[335945900,1724635840021,-500.0,0.00010989,2]
[335945901,1724635840030,-500.0,0.00010989,2]
[335945902,1724635840040,-18743.82548184,0.0001099,3]
[335945903,1724635840053,-3285.42717412,0.0001099,3]
[335945904,1724635840064,-3951.25058066,0.0001099,3]
[335945905,1724635840076,-11222.92795268,0.0001099,3]
[335945906,1724635840088,-1117.07495377,0.0001099,3]
[335945907,1724635840100,-6315.3454475,0.0001099,3]
[335945908,1724635840143,-177.43409899,0.00010899,2]
[335945909,1724635840155,-14663.1547523,0.0001099,3]
[335945910,1724635840167,-4853.09999989,0.0001099,3]
[335945911,1724635840179,-4925.52846422,0.0001099,3]
[335945912,1724635840191,-3498.81975779,0.0001099,3]
[335945913,1724635840203,-647.526547,0.0001099,3]
[335945914,1724635840214,-739.70005,0.0001099,3]
[335945915,1724635840226,-669.21960628,0.0001099,3]
[335945916,1724635840240,-73649.9962169,0.0001099,3]
[335945917,1724635840250,-212.64909193,0.0001099,2]
[335945918,1724635840260,-5800.0,0.00010992,2]
[335945919,1724635840269,-155.0,0.00010993,2]
[335945920,1724635840279,-10560.15771956,0.00010993,2]
[335945921,1724635840288,-500.0,0.00010996,2]
[335945923,1724635840299,-981.78,0.00010996,2]
[335945925,1724635840309,-2458.06,0.00010996,2]
[335945927,1724635840319,-946.06,0.00010996,2]
[335945929,1724635840328,-500.0,0.00010996,2]
[335945931,1724635840338,-4335.97,0.00010996,2]
[335945933,1724635840347,-8862.38,0.00010996,2]
[335945935,1724635840356,-3858.31,0.00010996,2]
[335945937,1724635840366,-2927.48,0.00010996,2]
[335945939,1724635840376,-3079.39,0.00010996,2]
[335945941,1724635840385,-2832.55,0.00010996,2]
[335945943,1724635840395,-6889.02,0.00010996,2]
[335945945,1724635840404,-508.83,0.00010996,2]
[335945947,1724635840413,-5655.15,0.00010996,2]
[335945949,1724635840423,-564.87,0.00010996,2]
[335945951,1724635840432,-1603.88,0.00010996,2]
[335945953,1724635840442,-6366.45,0.00010996,2]
[335945955,1724635840451,-531.38461279,0.00010996,2]
[335945957,1724635840461,-527.0536301,0.00010996,2]
[335945958,1724635840472,-8645.6,0.00010996,2]
[335945960,1724635840481,-874.91,0.00010996,2]
[335945962,1724635840491,-213.94263944,0.00010996,2]
[335945964,1724635840501,-193.08127122,0.00010997,2]
[335945966,1724635840510,-500.0,0.00010997,2]
[335945968,1724635840519,-500.0,0.00010997,2]
[335945970,1724635840529,-1519.26,0.00010997,2]
[335945972,1724635840538,-1519.26,0.00010997,2]
[335945974,1724635840548,-917.72,0.00010997,2]
[335945976,1724635840558,-917.72,0.00010997,2]
[335945978,1724635840567,-500.0,0.00010997,2]
[335945980,1724635840577,-500.0,0.00010997,2]
[335945982,1724635840587,-500.0,0.00010997,2]
[335945984,1724635840595,-500.0,0.00010997,2]
[335945986,1724635840605,-2369.21,0.00010997,2]
[335945987,1724635840615,-2369.21,0.00010997,2]
[335945989,1724635840624,-500.0,0.00010997,2]
[335945991,1724635840634,-500.0,0.00010997,2]
[335945993,1724635840644,-701.19,0.00010997,2]
[335945995,1724635840654,-701.19,0.00010997,2]
[335945997,1724635840663,-704.07,0.00010997,2]
[335945999,1724635840673,-704.07,0.00010997,2]
[335946001,1724635840683,-1977.72,0.00010997,2]
[335946003,1724635840693,-1977.72,0.00010997,2]
[335946005,1724635840703,-681.12,0.00010997,2]
[335946007,1724635840713,-681.12,0.00010997,2]
[335946009,1724635840726,-500.0,0.00010997,2]
[335946011,1724635840736,-500.0,0.00010997,2]
[335946013,1724635840745,-1181.58,0.00010997,2]
[335946015,1724635840755,-1181.58,0.00010997,2]
[335946017,1724635840765,-981.78,0.00010997,2]
[335946019,1724635840775,-981.78,0.00010997,2]
[335946021,1724635840784,-2458.06,0.00010997,2]
[335946023,1724635840795,-2458.06,0.00010997,2]
[335946025,1724635840804,-946.06,0.00010997,2]
[335946027,1724635840814,-946.06,0.00010997,2]
[335946029,1724635840823,-728.18,0.00010997,2]
[335946031,1724635840833,-728.18,0.00010997,2]
[335946033,1724635840843,-500.0,0.00010997,2]
[335946035,1724635840853,-500.0,0.00010997,2]
[335946037,1724635840863,-500.0,0.00010997,2]
[335946039,1724635840872,-500.0,0.00010997,2]
[335946041,1724635840882,-4335.97,0.00010997,2]
[335946042,1724635840891,-4335.97,0.00010997,2]
[335946044,1724635840900,-500.0,0.00010997,2]
[335946046,1724635840910,-500.0,0.00010997,2]
[335946048,1724635840920,-500.0,0.00010997,2]
[335946050,1724635840929,-500.0,0.00010997,2]
[335946052,1724635840939,-8862.38,0.00010997,2]
[335946054,1724635840948,-8862.38,0.00010997,2]
[335946056,1724635840958,-1635.78,0.00010997,2]
[335946058,1724635840967,-3858.31,0.00010997,2]
[335946060,1724635840977,-3858.31,0.00010997,2]
[335946062,1724635840987,-500.0,0.00010997,2]
[335946064,1724635840996,-1635.78,0.00010997,2]
[335946066,1724635841006,-500.0,0.00010997,2]
[335946068,1724635841015,-500.0,0.00010997,2]
[335946070,1724635841026,-500.0,0.00010997,2]
[335946071,1724635841035,-2927.48,0.00010997,2]
[335946073,1724635841045,-3079.39,0.00010997,2]
[335946075,1724635841054,-2927.48,0.00010997,2]
[335946077,1724635841062,-3079.39,0.00010997,2]
[335946079,1724635841072,-911.61,0.00010997,2]
[335946081,1724635841081,-911.61,0.00010997,2]
[335946083,1724635841090,-978.56,0.00010997,2]
[335946085,1724635841100,-978.56,0.00010997,2]
[335946086,1724635841109,-2832.55,0.00010997,2]
[335946088,1724635841118,-2832.55,0.00010997,2]
[335946090,1724635841127,-6889.02,0.00010997,2]
[335946092,1724635841136,-6889.02,0.00010997,2]
[335946094,1724635841145,-508.83,0.00010997,2]
[335946096,1724635841156,-508.83,0.00010997,2]
[335946098,1724635841167,-699.32,0.00010997,2]
[335946100,1724635841176,-699.32,0.00010997,2]
[335946102,1724635841188,-5655.15,0.00010997,2]
[335946104,1724635841198,-5655.15,0.00010997,2]
[335946106,1724635841209,-564.87,0.00010997,2]
[335946108,1724635841219,-564.87,0.00010997,2]
[335946110,1724635841228,-500.0,0.00010997,2]
[335946112,1724635841238,-500.0,0.00010997,2]
[335946114,1724635841248,-1227.34,0.00010997,2]
[335946116,1724635841258,-1227.34,0.00010997,2]
[335946118,1724635841267,-1603.88,0.00010997,2]
[335946120,1724635841277,-1603.88,0.00010997,2]
[335946122,1724635841286,-835.93,0.00010997,2]
[335946124,1724635841295,-835.93,0.00010997,2]
[335946126,1724635841305,-6366.45,0.00010997,2]
[335946128,1724635841315,-500.0,0.00010997,2]
[335946141,1724635841324,-897.22463598,0.00010997,2]
[335946144,1724635841467,-5198.16634652,0.00010997,2]
[335946348,1724635843504,-500.0,0.00010898,2]
[335946349,1724635843514,-500.0,0.00010898,2]
[335946350,1724635843523,-500.0,0.00010898,2]
[335946351,1724635843533,-449.50172318,0.00010899,2]
[335946352,1724635843542,-500.0,0.00010899,2]
[335946353,1724635843551,-500.0,0.00010986,2]
[335946354,1724635843561,-500.0,0.00010989,2]
[335946355,1724635843570,-13430.24550321,0.00010993,2]
[335946356,1724635843581,-3313.60911296,0.00010993,2]
[335946357,1724635843592,-526.02,0.00010993,2]
[335946359,1724635843656,-500.0,0.00010899,2]
[335946361,1724635843666,-2495.3569867,0.00010993,2]
[335946363,1724635843676,-271.0590175,0.00010997,2]
[335946365,1724635843685,-500.0,0.00010997,2]
[335946367,1724635843695,-500.0,0.00010997,2]
[335946369,1724635843704,-482.34,0.00010997,2]
[335946371,1724635843713,-2921.4,0.00010997,2]
[335946373,1724635843726,-2921.4,0.00010997,2]
[335946375,1724635843735,-500.0,0.00010997,2]
[335946377,1724635843744,-500.0,0.00010997,2]
[335946379,1724635843753,-500.0,0.00010997,2]
[335946381,1724635843763,-1331.2,0.00010997,2]
[335946383,1724635843772,-1331.2,0.00010997,2]
[335946385,1724635843781,-3172.64326657,0.00010997,2]
[335946387,1724635843792,-5472.95673343,0.00010997,2]
[335946389,1724635843802,-8645.6,0.00010997,2]
[335946391,1724635843811,-1097.75,0.00010997,2]
[335946393,1724635843820,-1097.75,0.00010997,2]
[335946395,1724635843829,-500.0,0.00010997,2]
[335946397,1724635843839,-620.82323178,0.00010997,2]
[335946399,1724635843848,-725.01,0.00010997,2]
[335946401,1724635843857,-725.01,0.00010997,2]
[335946403,1724635843867,-874.91,0.00010997,2]
[335946405,1724635843876,-874.91,0.00010997,2]
[335946407,1724635843885,-500.0,0.00010997,2]
[335946409,1724635843894,-500.0,0.00010997,2]
[335946411,1724635843903,-589.59442582,0.00010997,2]
[335946413,1724635843912,-500.0,0.00010997,2]
[335946415,1724635843921,-500.0,0.00010997,2]
[335946417,1724635843930,-518.95171598,0.00010997,2]
[335946419,1724635843939,-533.0,0.00010998,2]
[335946420,1724635843949,-500.0,0.00010998,2]
[335946422,1724635843958,-500.0,0.00010998,2]
[335946424,1724635843969,-500.0,0.00010998,2]
[335946427,1724635843978,-500.0,0.00010998,2]
[335946428,1724635843987,-500.0,0.00010998,2]
[335946430,1724635843997,-500.0,0.00010998,2]
[335946432,1724635844006,-500.0,0.00010998,2]
[335946434,1724635844015,-500.0,0.00010998,2]
[335946436,1724635844026,-500.0,0.00010998,2]
[335946439,1724635844036,-500.0,0.00010998,2]
[335946440,1724635844044,-500.0,0.00010998,2]
[335946442,1724635844054,-500.0,0.00010998,2]
[335946444,1724635844063,-500.0,0.00010998,2]
[335946446,1724635844072,-500.0,0.00010998,2]
[335946448,1724635844082,-549.8,0.00010998,2]
[335946450,1724635844091,-500.0,0.00010998,2]
[335946452,1724635844100,-500.0,0.00010998,2]
[335946454,1724635844109,-500.0,0.00010998,2]
[335946456,1724635844118,-500.0,0.00010998,2]
[335946458,1724635844127,-500.0,0.00010998,2]
[335946460,1724635844136,-500.0,0.00010998,2]
[335946462,1724635844145,-500.0,0.00010998,2]
[335946464,1724635844155,-500.0,0.00010998,2]
[335946466,1724635844166,-500.0,0.00010998,2]
[335946468,1724635844174,-500.0,0.00010998,2]
[335946469,1724635844183,-500.0,0.00010998,2]
[335946471,1724635844192,-500.0,0.00010998,2]
[335946473,1724635844202,-500.0,0.00010998,2]
[335946475,1724635844211,-500.0,0.00010998,2]
[335946477,1724635844222,-500.0,0.00010998,2]
[335946479,1724635844234,-500.0,0.00010998,2]
[335946481,1724635844246,-500.0,0.00010998,2]
[335946483,1724635844257,-500.0,0.00010998,2]
[335946485,1724635844266,-500.0,0.00010998,2]
[335946487,1724635844276,-500.0,0.00010998,2]
[335946489,1724635844286,-500.0,0.00010998,2]
[335946491,1724635844295,-500.0,0.00010998,2]
[335946493,1724635844304,-500.0,0.00010998,2]
[335946495,1724635844313,-500.0,0.00010998,2]
[335946497,1724635844325,-500.0,0.00010998,2]
[335946499,1724635844335,-500.0,0.00010998,2]
[335946501,1724635844343,-500.0,0.00010998,2]
[335946503,1724635844352,-500.0,0.00010998,2]
[335946505,1724635844362,-500.0,0.00010998,2]
[335946507,1724635844371,-500.0,0.00010998,2]
[335946509,1724635844380,-500.0,0.00010998,2]
[335946511,1724635844390,-500.0,0.00010998,2]
[335946513,1724635844399,-500.0,0.00010998,2]
[335946515,1724635844408,-502.07875273,0.00010998,2]
[335946517,1724635844417,-500.0,0.00010998,2]
[335946519,1724635844427,-500.0,0.00010998,2]
[335946521,1724635844436,-500.0,0.00010998,2]
[335946523,1724635844445,-500.0,0.00010998,2]
[335946525,1724635844454,-500.0,0.00010998,2]
[335946527,1724635844464,-500.0,0.00010998,2]
[335946529,1724635844474,-500.0,0.00010998,2]
[335946531,1724635844483,-500.0,0.00010998,2]
[335946533,1724635844491,-500.0,0.00010998,2]
[335946535,1724635844501,-500.0,0.00010998,2]
[335946537,1724635844510,-500.0,0.00010998,2]
[335946539,1724635844520,-500.0,0.00010998,2]
[335946541,1724635844530,-500.0,0.00010998,2]
[335946543,1724635844540,-500.0,0.00010998,2]
[335946545,1724635844550,-500.0,0.00010998,2]
[335946547,1724635844560,-500.0,0.00010998,2]
[335946549,1724635844569,-500.0,0.00010998,2]
[335946551,1724635844579,-500.0,0.00010998,2]
[335946554,1724635844589,-510.03059446,0.00010998,2]
[335946556,1724635844598,-500.0,0.00010998,2]
[335946558,1724635844609,-500.0,0.00010998,2]
[335946560,1724635844619,-500.0,0.00010998,2]
[335946562,1724635844629,-500.0,0.00010998,2]
[335946564,1724635844638,-500.0,0.00010998,2]
[335946566,1724635844647,-500.0,0.00010998,2]
[335946568,1724635844656,-500.0,0.00010998,2]
[335946570,1724635844665,-500.0,0.00010998,2]
[335946572,1724635844675,-500.0,0.00010998,2]
[335946574,1724635844684,-500.0,0.00010998,2]
[335946576,1724635844693,-500.0,0.00010998,2]
[335946578,1724635844702,-500.0,0.00010998,2]
[335946580,1724635844712,-519.88627302,0.00010998,2]
[335946582,1724635844722,-500.0,0.00010998,2]
[335946584,1724635844731,-500.0,0.00010998,2]
[335946586,1724635844740,-500.0,0.00010998,2]
[335946588,1724635844750,-500.0,0.00010998,2]
[335946590,1724635844759,-500.0,0.00010998,2]
[335946592,1724635844768,-437.84128999,0.00010998,2]
[335946594,1724635844777,-500.0,0.00010998,2]
[335946596,1724635844787,-519.88429961,0.00010998,2]
[335946598,1724635844797,-190.14735193,0.00010998,2]
[335946600,1724635844806,-498.62502723,0.00010998,2]
[335946602,1724635844815,-500.0,0.00010998,2]
[335946604,1724635844824,-297.05069768,0.00010998,2]
[335946606,1724635844834,-150.0,0.00010998,2]
[335946608,1724635844843,-150.0,0.00010998,2]
[335946609,1724635844852,-150.0,0.00010998,2]
[335946612,1724635844862,-150.0,0.00010998,2]
[335946614,1724635844871,-382.09071521,0.00010998,2]
[335946700,1724635845691,-398.1752,0.00010761,2]
[335946703,1724635845700,-500.0,0.00010898,2]
[335946707,1724635845710,-500.0,0.00010986,2]
[335946710,1724635845719,-420.22787019,0.00010996,2]
[335946714,1724635845729,-117.90928479,0.00010998,2]
[335946716,1724635845738,-500.0,0.00010998,2]
[335946718,1724635845748,-500.0,0.00010998,2]
[335946721,1724635845757,-500.0,0.00010998,2]
[335946724,1724635845766,-500.0,0.00010998,2]
[335946729,1724635845776,-500.0,0.00010998,2]
[335946732,1724635845786,-500.0,0.00010998,2]
[335946734,1724635845795,-500.0,0.00010998,2]
[335946737,1724635845804,-500.0,0.00010998,2]
[335946739,1724635845813,-69.5389393,0.00010998,2]
[335946744,1724635845825,-428.44810175,0.00010998,2]
[335946751,1724635845854,-500.0,0.00010899,2]
[335946754,1724635845864,-177.43409899,0.000109,2]
[335946756,1724635845873,-25.49821601,0.00010998,2]
[335946759,1724635845883,-500.0,0.00010998,2]
[335946762,1724635845893,-500.0,0.00010998,2]
[335946764,1724635845903,-500.0,0.00010998,2]
[335946766,1724635845912,-500.0,0.00010998,2]
[335946767,1724635845921,-104.88515502,0.00010998,2]
[335946770,1724635845933,-395.11484498,0.00010998,2]
[335946772,1724635845942,-340.99042154,0.00010998,2]
[335946774,1724635845951,-375.92469454,0.00010998,2]
[335946775,1724635845960,-431.55517335,0.00010998,2]
[335946781,1724635846012,-500.0,0.00010898,2]
[335946783,1724635846022,-68.44482665,0.00010998,2]
[335946785,1724635846031,-500.0,0.00010998,2]
[335946786,1724635846039,-500.0,0.00010998,2]
[335946789,1724635846049,-500.0,0.00010998,2]
[335946790,1724635846058,-500.0,0.00010998,2]
[335946792,1724635846067,-500.0,0.00010998,2]
[335946794,1724635846076,-500.0,0.00010998,2]
[335946807,1724635846085,-500.0,0.00010998,2]
[335946809,1724635846210,-500.0,0.00010998,2]
[335946811,1724635846220,-500.0,0.00010998,2]
[335946813,1724635846230,-501.71285672,0.00010998,2]
[335946815,1724635846241,-500.0,0.00010998,2]
[335946817,1724635846251,-500.0,0.00010998,2]
[335946819,1724635846260,-500.0,0.00010998,2]
[335946821,1724635846270,-500.0,0.00010998,2]
[335946823,1724635846279,-500.0,0.00010998,2]
[335946825,1724635846289,-500.0,0.00010998,2]
[335946826,1724635846298,-501.19316559,0.00010998,2]
[335946828,1724635846307,-500.0,0.00010998,2]
[335946830,1724635846316,-500.0,0.00010998,2]
[335946832,1724635846326,-500.78717786,0.00010998,2]
[335946834,1724635846335,-500.0,0.00010998,2]
[335946836,1724635846344,-500.0,0.00010998,2]
[335946838,1724635846355,-500.0,0.00010998,2]
[335946840,1724635846363,-500.0,0.00010998,2]
[335946841,1724635846372,-607.40914122,0.00010998,2]
[335946843,1724635846381,-500.0,0.00010998,2]
[335946845,1724635846391,-500.0,0.00010998,2]
[335946847,1724635846400,-500.0,0.00010998,2]
[335946849,1724635846409,-500.0,0.00010998,2]
[335946851,1724635846419,-500.0,0.00010998,2]
[335946853,1724635846428,-500.0,0.00010998,2]
[335946855,1724635846437,-500.0,0.00010998,2]
[335946856,1724635846446,-500.0,0.00010998,2]
[335946858,1724635846456,-500.0,0.00010998,2]
[335946860,1724635846465,-500.0,0.00010998,2]
[335946862,1724635846479,-500.0,0.00010998,2]
[335946864,1724635846489,-500.0,0.00010998,2]
[335946866,1724635846498,-500.0,0.00010998,2]
[335946868,1724635846507,-500.0,0.00010998,2]
[335946870,1724635846516,-500.0,0.00010998,2]
[335946872,1724635846525,-500.0,0.00010998,2]
[335946874,1724635846535,-501.12635539,0.00010998,2]
[335946876,1724635846544,-500.0,0.00010998,2]
[335946878,1724635846553,-500.0,0.00010998,2]
[335946880,1724635846562,-500.0,0.00010998,2]
[335946882,1724635846572,-500.0,0.00010998,2]
[335946884,1724635846582,-500.0,0.00010998,2]
[335946886,1724635846591,-500.0,0.00010998,2]
[335946888,1724635846600,-500.0,0.00010998,2]
[335946890,1724635846610,-500.0,0.00010998,2]
[335946892,1724635846619,-500.0,0.00010998,2]
[335946894,1724635846628,-500.0,0.00010998,2]
[335946896,1724635846638,-500.0,0.00010998,2]
[335946898,1724635846646,-500.0,0.00010998,2]
[335946900,1724635846656,-500.0,0.00010998,2]
[335946901,1724635846665,-500.0,0.00010998,2]
[335946903,1724635846674,-500.0,0.00010998,2]
[335946905,1724635846683,-492.21204506,0.00010998,2]
[335946907,1724635846692,-500.0,0.00010998,2]
[335946909,1724635846702,-500.0,0.00010998,2]
[335946911,1724635846712,-500.0,0.00010998,2]
[335946913,1724635846723,-500.0,0.00010998,2]
[335946915,1724635846733,-500.0,0.00010998,2]
[335946917,1724635846742,-500.0,0.00010998,2]
[335946919,1724635846752,-500.0,0.00010998,2]
[335946921,1724635846761,-500.0,0.00010998,2]
[335946923,1724635846770,-500.0,0.00010998,2]
[335946925,1724635846779,-502.25016937,0.00010998,2]
[335946927,1724635846787,-500.0,0.00010998,2]
[335946929,1724635846797,-4.12527088,0.00010998,2]
[335946931,1724635846810,-491.22555174,0.00010998,2]
[335946933,1724635846820,-500.0,0.00010998,2]
[335946935,1724635846829,-500.0,0.00010998,2]
[335946937,1724635846838,-280.05684432,0.00010998,2]
[335947204,1724635876830,301.40578629,0.00010009,2]
[335947205,1724635879725,162.35910873,0.00010009,2]
[335947206,1724635914545,309.53014003,0.00010009,2]
[335947208,1724635974901,159.13,7.285e-05,2]
[335947209,1724636009966,596.8,9.983e-05,2]
[335947212,1724636042294,500.0,7.285e-05,2]
[335947213,1724636042925,500.0,7.285e-05,2]
[335947214,1724636043256,500.0,7.285e-05,2]
[335947215,1724636043585,500.0,7.285e-05,2]
[335947216,1724636044005,576.0,7.285e-05,2]
[335947217,1724636045764,336.13355513,8.83e-05,2]
[335947218,1724636065020,245.17,9.962e-05,2]
[335947219,1724636083893,182.60033489,0.0001,2]
[335947220,1724636091859,454.10593567,8.83e-05,2]
[335947221,1724636094038,163.40572769,0.0001,2]
[335947222,1724636105314,171.17800774,0.0001,2]
[335947224,1724636156946,262.14,9.96e-05,2]
[335947242,1724636268698,620.42,8.219e-05,2]
[335947248,1724636369647,250.0,9.969e-05,2]
[335947249,1724636383851,155.59017719,9.962e-05,2]
[335947250,1724636387991,441.14257879,9.962e-05,2]
[335947255,1724636493041,159.13,7.206e-05,2]
[335947258,1724636521930,522.56,9.95e-05,2]
[335947259,1724636567701,203.86,9.945e-05,2]
[335947261,1724636581080,7430.21,9.932e-05,2]
[335947262,1724636589638,155.886366,9.95e-05,2]
[335947263,1724636604323,5761.79,9.927e-05,2]
[335947264,1724636627395,524.069956,0.00010009,2]
[335947265,1724636685859,599.69521331,0.00010009,2]
[335947267,1724636701174,200.0,9.912e-05,2]
[335947268,1724636712991,317.78,9.907e-05,2]
[335947271,1724636739024,440.85166092,0.00010009,2]
[335947272,1724636762706,1050.0,0.0001,2]
[335947280,1724636842729,636.82449284,0.00010009,2]
[335947281,1724636846604,197.85989748,0.00010009,2]
[335947288,1724636896281,618.61,8.219e-05,2]
[335947292,1724636907976,442.15,9.914e-05,2]
[335947293,1724636927686,9967.83434609,0.00010009,2]
[335947302,1724637009911,173.27,9.913e-05,2]
[335947317,1724637037199,485.94142006,0.00010009,2]
[335947319,1724637037902,-290.70857756,0.00010026,2]
[335947321,1724637037913,-1477.72809244,0.00010026,2]
[335947323,1724637037924,-1558.21251697,0.00010026,2]
[335947324,1724637037934,-1588.58128303,0.00010026,2]
[335947325,1724637037945,-1364.8155491,0.00010026,2]
[335947326,1724637037954,-300.0,0.00010096,2]
[335947327,1724637037963,-155.0,0.00010097,2]
[335947328,1724637037972,-258.11492518,0.00010471,2]
[335947329,1724637037981,-866.41192874,0.00010471,2]
[335947330,1724637037992,-810.67825367,0.00010471,2]
[335947331,1724637038002,-155.10122817,0.00010471,2]
[335947332,1724637038011,-271.10918719,0.00010471,2]
[335947333,1724637038021,-618.61,0.00010472,2]
[335947334,1724637038030,-155.6035377,0.00010505,2]
[335947335,1724637038040,-826.27134568,0.00010566,2]
[335947336,1724637038049,-150.0,0.00010685,2]
[335947337,1724637038059,-160.62640488,0.00010699,2]
[335947338,1724637038068,-155.0,0.00010713,2]
[335947339,1724637038078,-150.0,0.00010798,2]
[335947340,1724637038087,-499.99,0.00010798,2]
[335947341,1724637038096,-364.91,0.00010798,2]
[335947342,1724637038106,-163.926,0.00010798,2]
[335947343,1724637038116,-210.3364,0.00010799,2]
[335947344,1724637038126,-4409.21580061,0.00010799,2]
[335947347,1724637038323,-8693.51986952,0.00010799,2]
[335947348,1724637038337,-1381.24087936,0.00010799,2]
[335947349,1724637038350,-63382.95664138,0.00010799,2]
[335947350,1724637038361,-772.69776091,0.00010799,2]
[335947351,1724637038372,-3179.10899646,0.00010799,2]
[335947352,1724637038384,-4841.92010082,0.00010799,2]
[335947353,1724637038412,-3634.74725094,0.00010799,2]
[335947354,1724637038421,-633.97047201,0.00010799,2]